bitfinex/quotes_BTCUSD_20230404
["timestamp","ask_amount","ask_price","bid_price","bid_amount"]
[1680634594431,0.58631544,28164.0,28163.0,0.19962818]
[1680634594636,0.58631544,28164.0,28163.0,0.19112818]
[1680634594637,0.64132144,28164.0,28163.0,0.19112818]
[1680634595872,0.99512144,28164.0,28163.0,0.19112818]
[1680634596087,1.29512144,28164.0,28163.0,0.19112818]
[1680634596523,1.31512144,28164.0,28163.0,0.19112818]
[1680634598132,1.31483926,28164.0,28163.0,0.19112818]
[1680634600023,1.29483926,28164.0,28163.0,0.19112818]
[1680634600257,1.31483926,28164.0,28163.0,0.19112818]
[1680634604385,1.66954982,28164.0,28163.0,0.19112818]
[1680634604617,1.66954982,28164.0,28162.0,0.02108]
[1680634604618,1.29775234,28164.0,28162.0,0.01301654]
[1680634604849,1.25308686,28163.0,28162.0,0.00224653]
[1680634605069,1.25734686,28163.0,28162.0,0.00224653]
[1680634605939,1.25755686,28163.0,28162.0,0.00224653]
[1680634606178,1.28455686,28163.0,28162.0,0.00224653]
[1680634606602,1.28455686,28163.0,28161.0,0.01417227]
[1680634606603,1.28434686,28163.0,28161.0,0.01417227]
[1680634606813,0.55685889,28162.0,28161.0,0.01417227]
[1680634607048,0.91867045,28162.0,28161.0,0.01417227]
[1680634607261,1.21867045,28162.0,28161.0,0.01417227]
[1680634608362,0.5238,28161.0,28160.0,0.01792127]
[1680634608617,1.55505161,28161.0,28160.0,0.01792127]
[1680634608876,1.55526161,28161.0,28160.0,0.01792127]
[1680634609286,1.58226161,28161.0,28160.0,0.01792127]
[1680634609504,1.55526161,28161.0,28160.0,0.01792127]
[1680634609719,1.58226161,28161.0,28160.0,0.01792127]
[1680634611945,1.40471161,28161.0,28160.0,0.01792127]
[1680634612619,1.37771161,28161.0,28160.0,0.01792127]
[1680634612857,1.25471161,28161.0,28160.0,0.01792127]
[1680634614022,1.64883177,28161.0,28160.0,0.01792127]
[1680634614238,1.25471161,28161.0,28160.0,0.01792127]
[1680634614887,1.25471161,28161.0,28160.0,0.00292127]
[1680634615075,1.25450161,28161.0,28160.0,0.00292127]
[1680634617807,0.415005,28160.0,28159.0,0.0209]
[1680634618032,1.36450319,28160.0,28159.0,0.0209]
[1680634618254,1.21450319,28160.0,28159.0,0.0209]
[1680634618663,1.26957146,28160.0,28159.0,0.0149318]
[1680634619128,1.29657146,28160.0,28159.0,0.0058768]
[1680634619588,0.15,28159.0,28158.0,0.0209]
[1680634619818,1.38885511,28159.0,28158.0,0.0209]
[1680634620048,1.59482511,28159.0,28158.0,0.0209]
[1680634620548,1.62182511,28159.0,28158.0,0.0209]
[1680634620774,1.64733558,28159.0,28158.0,0.01505883]
[1680634620966,1.67433558,28159.0,28158.0,0.01505883]
[1680634621265,1.49677558,28159.0,28158.0,0.01505883]
[1680634621578,1.46977558,28159.0,28158.0,0.01505883]
[1680634621580,1.49677558,28159.0,28158.0,0.00928374]
[1680634621802,1.46977558,28159.0,28158.0,0.00928374]
[1680634622025,1.49677558,28159.0,28158.0,0.00928374]
[1680634622665,1.49677558,28159.0,28158.0,0.0036224]
[1680634623511,0.5238,28158.0,28157.0,0.0155724]
[1680634623718,1.39891975,28158.0,28157.0,0.0155724]
[1680634624573,1.42591975,28158.0,28157.0,0.0155724]
[1680634624810,1.42591975,28158.0,28146.0,0.0209]
[1680634624811,0.15,28157.0,28146.0,0.0209]
[1680634625035,0.15,28157.0,28144.0,0.02299]
[1680634625036,0.74131056,28147.0,28144.0,0.02299]
[1680634625258,0.74131056,28147.0,28143.0,0.01658696]
[1680634625259,0.3867,28145.0,28143.0,0.01658696]
[1680634625486,0.93081937,28144.0,28143.0,0.01658696]
[1680634625712,1.214225,28144.0,28139.0,0.45464974]
[1680634625941,0.0129,28140.0,28139.0,0.59252]
[1680634626161,0.19999081,28140.0,28139.0,0.59252]
[1680634626371,0.058094,28140.0,28139.0,0.17064]
[1680634626630,0.058094,28140.0,28139.0,0.17052]
[1680634626852,0.085094,28140.0,28139.0,0.17052]
[1680634627075,0.1612886,28140.0,28139.0,0.17052]
[1680634628161,0.6092812,28140.0,28139.0,0.17052]
[1680634629010,0.51599916,28140.0,28139.0,0.17052]
[1680634629225,1.18979916,28140.0,28139.0,0.17052]
[1680634629663,1.5496707,28140.0,28139.0,0.17052]
[1680634630565,1.5498807,28140.0,28139.0,0.17052]
[1680634631416,1.5433807,28140.0,28139.0,0.17052]
[1680634631655,0.372404,28140.0,28139.0,0.17052]
[1680634631858,0.32721,28140.0,28139.0,0.17902]
[1680634632077,0.74879734,28140.0,28139.0,0.17902]
[1680634632294,0.76542634,28140.0,28139.0,0.17902]
[1680634632499,0.76542634,28140.0,28139.0,0.17052]
[1680634632709,0.91985256,28140.0,28139.0,0.17052]
[1680634632912,0.89285256,28140.0,28139.0,0.17052]
[1680634633125,1.22219678,28140.0,28139.0,0.17052]
[1680634633537,1.22859678,28140.0,28138.0,0.01]
[1680634633750,1.20120784,28139.0,28138.0,0.01]
[1680634633958,1.21115784,28139.0,28138.0,0.01]
[1680634634856,1.23815784,28139.0,28138.0,0.01]
[1680634635073,1.21136784,28139.0,28138.0,0.01]
[1680634635299,1.23815784,28139.0,28138.0,0.01]
[1680634635937,1.6677108,28139.0,28138.0,0.01]
[1680634636151,1.23815784,28139.0,28138.0,0.01]
[1680634636581,1.21115784,28139.0,28138.0,0.01]
[1680634636992,1.57712409,28139.0,28138.0,0.01]
[1680634637208,0.343303,28139.0,28138.0,0.01]
[1680634637421,0.301631,28139.0,28138.0,0.01]
[1680634637638,0.372507,28139.0,28138.0,0.01]
[1680634638110,0.70218866,28139.0,28138.0,0.01]
[1680634638325,0.81049173,28139.0,28138.0,0.01]
[1680634638542,1.20932063,28139.0,28138.0,0.01]
[1680634638968,1.21572063,28139.0,28138.0,0.01]
[1680634640280,1.18872063,28139.0,28138.0,0.01]
[1680634640475,1.21572063,28139.0,28138.0,0.01]
[1680634640709,1.18872063,28139.0,28138.0,0.01]
[1680634640930,1.21572063,28139.0,28138.0,0.01]
[1680634642035,0.16,28138.0,28127.0,0.00266647]
[1680634642258,0.16,28138.0,28122.0,0.0246]
[1680634642259,0.73491056,28128.0,28122.0,0.0246]
[1680634642478,0.0064,28123.0,28122.0,0.0246]
[1680634642711,0.92470337,28123.0,28122.0,0.01989365]
[1680634642932,1.04774261,28123.0,28122.0,0.01989365]
[1680634643157,0.728306,28123.0,28122.0,0.01989365]
[1680634643369,0.728306,28123.0,28122.0,0.01489365]
[1680634643370,0.728096,28123.0,28122.0,0.01489365]
[1680634643843,1.07220237,28123.0,28122.0,0.01489365]
[1680634644075,1.09920237,28123.0,28122.0,0.01489365]
[1680634644300,1.07220237,28123.0,28122.0,0.01489365]
[1680634644528,1.55472307,28123.0,28122.0,0.01489365]
[1680634644988,1.53472307,28123.0,28122.0,0.01489365]
[1680634645221,1.56172307,28123.0,28122.0,0.01489365]
[1680634646319,1.2176167,28123.0,28122.0,0.01489365]
[1680634646760,1.5636344,28123.0,28122.0,0.01489365]
[1680634647417,1.1908267,28123.0,28122.0,0.01489365]
[1680634647644,1.71461798,28123.0,28122.0,0.01489365]
[1680634647860,1.6460542,28123.0,28122.0,0.01489365]
[1680634648068,1.6730542,28123.0,28122.0,0.01489365]
[1680634648728,1.1569541,28123.0,28122.0,0.01489365]
[1680634649646,1.1569541,28123.0,28122.0,0.01019125]
[1680634649849,1.57782151,28123.0,28122.0,0.01019125]
[1680634650049,1.1569541,28123.0,28122.0,0.01019125]
[1680634650871,1.1833541,28123.0,28122.0,0.01019125]
[1680634651098,1.1833541,28123.0,28121.0,0.01367825]
[1680634651099,0.5238,28122.0,28121.0,0.01367825]
[1680634651303,1.25865356,28122.0,28121.0,0.01367825]
[1680634651741,1.25865356,28122.0,28121.0,0.00902421]
[1680634651949,1.27636985,28122.0,28121.0,0.00902421]
[1680634652159,1.42092086,28122.0,28121.0,0.00902421]
[1680634652371,1.25320457,28122.0,28121.0,0.00902421]
[1680634652572,1.10865356,28122.0,28121.0,0.00902421]
[1680634652776,1.18098988,28122.0,28121.0,0.00449058]
[1680634652993,1.15398988,28122.0,28121.0,0.00449058]
[1680634653191,1.18098988,28122.0,28121.0,0.00449058]
[1680634654100,1.15398988,28122.0,28121.0,0.00449058]
[1680634654318,1.29726317,28122.0,28121.0,0.00449058]
[1680634654531,1.27026317,28122.0,28121.0,0.00449058]
[1680634654740,1.27026317,28122.0,28121.0,1.63e-06]
[1680634655371,1.29726317,28122.0,28121.0,1.63e-06]
[1680634655585,1.27026317,28122.0,28121.0,1.63e-06]
[1680634655789,1.29726317,28122.0,28118.0,0.028433]
[1680634655998,0.0326,28119.0,28118.0,0.028433]
[1680634656216,1.11474856,28119.0,28118.0,0.028433]
[1680634656435,0.81474856,28119.0,28116.0,0.00018]
[1680634656638,0.4064,28117.0,28116.0,6e-05]
[1680634656840,1.22310016,28117.0,28115.0,0.00018]
[1680634657052,1.07140256,28116.0,28115.0,0.00018]
[1680634657247,1.07282456,28116.0,28114.0,0.00012]
[1680634657448,0.416978,28115.0,28114.0,0.00012]
[1680634657793,0.721245,28115.0,28114.0,0.00012]
[1680634658017,1.1924246,28115.0,28113.0,0.169258]
[1680634658239,1.1924246,28115.0,28111.0,0.1707]
[1680634658240,1.10551656,28114.0,28111.0,0.1707]
[1680634658475,0.3738,28112.0,28111.0,0.1707]
[1680634658692,0.3738,28112.0,28111.0,0.1657]
[1680634658693,0.8557557,28112.0,28111.0,0.1657]
[1680634658909,0.76274256,28112.0,28111.0,0.1707]
[1680634659354,0.416001,28111.0,28110.0,0.0231]
[1680634659579,1.10798856,28111.0,28110.0,0.0231]
[1680634661176,1.13498856,28111.0,28110.0,0.0231]
[1680634661437,1.2117046,28111.0,28110.0,0.0231]
[1680634661657,1.2387046,28111.0,28110.0,0.0231]
[1680634661877,1.2117046,28111.0,28110.0,0.0231]
[1680634662107,1.2387046,28111.0,28110.0,0.0231]
[1680634662354,1.2117046,28111.0,28110.0,0.0231]
[1680634662581,1.2387046,28111.0,28110.0,0.0231]
[1680634662818,1.68792909,28111.0,28110.0,0.0231]
[1680634663047,1.17755406,28111.0,28110.0,0.01882245]
[1680634663717,1.07128606,28111.0,28110.0,0.01882245]
[1680634663941,0.76875706,28111.0,28110.0,0.01882245]
[1680634664161,0.74175706,28111.0,28110.0,0.01882245]
[1680634664360,0.76875706,28111.0,28110.0,0.01382245]
[1680634664586,0.82006737,28111.0,28110.0,0.01382245]
[1680634664815,1.19386737,28111.0,28110.0,0.01382245]
[1680634665040,1.22086737,28111.0,28110.0,0.01382245]
[1680634665273,1.25366737,28111.0,28110.0,0.01382245]
[1680634665493,1.17535706,28111.0,28110.0,0.01382245]
[1680634665719,1.17535706,28111.0,28110.0,0.01003608]
[1680634667095,1.13949198,28111.0,28110.0,0.01003608]
[1680634667320,1.14255706,28111.0,28110.0,0.01003608]
[1680634667777,1.14255706,28111.0,28110.0,0.00628758]
[1680634668246,1.29364737,28111.0,28110.0,0.00628758]
[1680634670121,0.15,28108.0,28102.0,0.00018]
[1680634670359,0.15,28108.0,28097.0,0.0209]
[1680634670360,0.3738,28102.0,28097.0,0.19166]
[1680634670589,0.3738,28102.0,28097.0,0.0159]
[1680634670590,0.4064,28099.0,28097.0,0.0159]
[1680634670819,0.91483337,28098.0,28097.0,0.0159]
[1680634671273,1.21483337,28098.0,28097.0,0.0159]
[1680634671501,1.10574656,28098.0,28097.0,0.0159]
[1680634671735,1.17396232,28098.0,28097.0,0.01245985]
[1680634671966,1.06253356,28098.0,28097.0,0.02863585]
[1680634672187,1.06253356,28098.0,28097.0,0.01245985]
[1680634672718,1.12337654,28098.0,28097.0,0.01245985]
[1680634673862,1.16750454,28098.0,28097.0,0.01245985]
[1680634674084,1.28513009,28098.0,28097.0,0.01245985]
[1680634674326,1.59851522,28098.0,28097.0,0.01245985]
[1680634675007,1.16750454,28098.0,28097.0,0.01245985]
[1680634675449,1.62297031,28098.0,28097.0,0.01245985]
[1680634675673,1.16750454,28098.0,28097.0,0.00907464]
[1680634675912,1.60060135,28098.0,28097.0,0.00907464]
[1680634676143,1.55647335,28098.0,28097.0,0.00907464]
[1680634676364,1.59935635,28098.0,28097.0,0.00907464]
[1680634676621,1.60077935,28098.0,28097.0,0.00907464]
[1680634677076,0.79536279,28098.0,28097.0,0.00907464]
[1680634677306,0.79536279,28098.0,28097.0,0.01757464]
[1680634677529,0.79536279,28098.0,28097.0,0.00907464]
[1680634677784,0.06084298,28098.0,28097.0,0.2523821]
[1680634678019,0.06084298,28098.0,28097.0,0.6422332]
[1680634678249,0.06084298,28098.0,28097.0,0.6424132]
[1680634678469,0.03384298,28098.0,28097.0,0.74334374]
[1680634678694,0.36271056,28098.0,28097.0,0.75757974]
[1680634678918,0.15131981,28098.0,28097.0,0.00925464]
[1680634679143,0.3650077,28098.0,28097.0,0.00925464]
[1680634679367,0.40150847,28098.0,28097.0,0.00925464]
[1680634679604,0.3650077,28098.0,28097.0,0.00907464]
[1680634679829,0.39512428,28098.0,28097.0,0.00919464]
[1680634680060,0.39512428,28098.0,28097.0,0.00907464]
[1680634680306,0.39512428,28098.0,28097.0,0.01757464]
[1680634680988,0.03811658,28098.0,28097.0,0.20574064]
[1680634681188,0.03811658,28098.0,28097.0,0.18833464]
[1680634681433,0.03811658,28098.0,28097.0,0.56341656]
[1680634681657,0.03811658,28098.0,28097.0,0.56347656]
[1680634681885,0.03811658,28098.0,28097.0,0.18851464]
[1680634682111,0.03811658,28098.0,28097.0,0.18833464]
[1680634682531,0.03811658,28098.0,28097.0,0.18845464]
[1680634682816,0.39172253,28098.0,28097.0,0.18845464]
[1680634683040,0.39172253,28098.0,28097.0,0.18851464]
[1680634684394,0.46091578,28098.0,28097.0,0.01775464]
[1680634684617,0.46091578,28098.0,28097.0,0.01757464]
[1680634685233,0.48787913,28098.0,28097.0,0.01757464]
[1680634685482,0.4851468,28098.0,28097.0,0.01757464]
[1680634685698,0.43881887,28098.0,28097.0,0.01757464]
[1680634685926,0.48150487,28098.0,28097.0,0.01757464]
[1680634686594,0.81073614,28098.0,28097.0,0.00907464]
[1680634686825,1.21589468,28098.0,28097.0,0.00907464]
[1680634687280,0.99882131,28098.0,28097.0,0.00907464]
[1680634687515,1.45843441,28098.0,28097.0,0.00907464]
[1680634687760,1.45843441,28098.0,28094.0,0.014228]
[1680634687761,0.3738,28096.0,28094.0,0.00811816]
[1680634687982,0.82938656,28095.0,28094.0,0.00811816]
[1680634688233,0.98925219,28095.0,28094.0,0.00811816]
[1680634688460,0.00811,28094.0,28087.0,0.0070472]
[1680634688699,0.0329,28089.0,28087.0,0.0070472]
[1680634688930,0.95125937,28088.0,28087.0,0.0070472]
[1680634689166,0.80936256,28088.0,28087.0,0.0070472]
[1680634689399,1.10936256,28088.0,28087.0,0.0070472]
[1680634690547,1.13636256,28088.0,28087.0,0.0070472]
[1680634690816,1.42530233,28088.0,28087.0,0.0070472]
[1680634691038,1.45230233,28088.0,28087.0,0.0070472]
[1680634691258,1.45372633,28088.0,28087.0,0.0070472]
[1680634691483,1.47363471,28088.0,28087.0,0.0070472]
[1680634691711,1.10651456,28088.0,28087.0,0.0070472]
[1680634691972,1.21747182,28088.0,28087.0,0.0070472]
[1680634692636,1.24447182,28088.0,28087.0,0.0070472]
[1680634692859,1.21747182,28088.0,28087.0,0.0070472]
[1680634693002,1.24447182,28088.0,28087.0,0.0070472]
[1680634693623,1.48943949,28088.0,28087.0,0.0070472]
[1680634693822,0.37098,28088.0,28087.0,0.0155472]
[1680634694052,0.37119,28088.0,28087.0,0.0155472]
[1680634694255,0.00021,28088.0,28087.0,0.4309699]
[1680634694454,0.43593309,28092.0,28087.0,0.46389822]
[1680634694653,0.027,28088.0,28087.0,0.65102522]
[1680634694861,0.027,28088.0,28087.0,0.48020522]
[1680634695296,0.027,28088.0,28087.0,0.65120522]
[1680634695513,0.43593309,28092.0,28088.0,0.016285]
[1680634695730,0.00021,28093.0,28089.0,0.0085]
[1680634695931,0.38363768,28093.0,28089.0,0.17932]
[1680634696145,0.38363768,28093.0,28090.0,0.17082]
[1680634696358,0.42202245,28093.0,28091.0,0.0085]
[1680634696568,0.008,28092.0,28091.0,0.0085]
[1680634696779,0.02643059,28092.0,28091.0,0.0085]
[1680634696997,0.32643059,28092.0,28091.0,0.0085]
[1680634697216,0.32643059,28092.0,28090.0,0.17932]
[1680634697637,0.32643059,28092.0,28090.0,0.0085]
[1680634697846,0.07102783,28091.0,28090.0,0.32649077]
[1680634698059,0.32664059,28092.0,28090.0,0.00862]
[1680634698383,0.35343059,28092.0,28090.0,0.0085]
[1680634698492,0.32643059,28092.0,28090.0,0.17932]
[1680634698685,0.021,28091.0,28090.0,0.17932]
[1680634698890,0.021,28091.0,28090.0,0.62374017]
[1680634699156,0.02643059,28092.0,28091.0,0.79076115]
[1680634699379,0.04743059,28092.0,28091.0,0.64475115]
[1680634699610,0.02643059,28092.0,28091.0,0.79920115]
[1680634699844,0.38178453,28095.0,28091.0,0.81585215]
[1680634700067,0.38178453,28095.0,28092.0,0.0085]
[1680634700287,0.38178453,28095.0,28092.0,0.17926]
[1680634700505,0.00021,28096.0,28093.0,0.17076]
[1680634700769,0.02402989,28094.0,28093.0,0.17076]
[1680634701246,0.02402989,28094.0,28093.0,0.39299479]
[1680634701723,0.02402989,28094.0,28093.0,0.43231227]
[1680634701972,0.05102989,28094.0,28093.0,0.43331227]
[1680634702235,0.02402989,28094.0,28093.0,0.39311479]
[1680634702498,0.04502989,28094.0,28093.0,0.39411479]
[1680634702721,0.02402989,28094.0,28093.0,0.39311479]
[1680634702945,0.04502989,28094.0,28093.0,0.39417479]
[1680634703616,0.04502989,28094.0,28093.0,0.41091479]
[1680634703841,0.04502989,28094.0,28093.0,0.40966679]
[1680634704301,0.04502989,28094.0,28093.0,0.39417479]
[1680634704777,0.04502989,28094.0,28093.0,0.41099379]
[1680634705029,0.04502989,28094.0,28093.0,0.39417479]
[1680634705250,0.02402989,28094.0,28093.0,0.39317479]
[1680634705471,0.02502989,28094.0,28093.0,0.17944]
[1680634705706,0.02502989,28094.0,28093.0,0.17938]
[1680634705939,0.02502989,28094.0,28093.0,0.17944]
[1680634707571,0.02502989,28094.0,28093.0,0.17938]
[1680634708040,0.02502989,28094.0,28092.0,0.4386495]
[1680634708273,0.02502989,28094.0,28093.0,0.17076]
[1680634708708,0.02402989,28094.0,28093.0,0.17076]
[1680634708987,0.03202989,28094.0,28093.0,0.17176]
[1680634710122,0.03202989,28094.0,28093.0,0.18026]
[1680634712630,0.03202989,28094.0,28093.0,0.41019759]
[1680634712850,0.03202989,28094.0,28093.0,0.42624059]
[1680634713303,0.03202989,28094.0,28093.0,0.44047859]
[1680634713835,0.03202989,28094.0,28093.0,0.79518915]
[1680634713872,0.03202989,28094.0,28093.0,0.84210281]
[1680634714661,0.03202989,28094.0,28093.0,0.88017968]
[1680634714870,0.03202989,28094.0,28093.0,1.00766548]
[1680634715291,0.03202989,28094.0,28093.0,1.00775377]
[1680634715707,0.008,28094.0,28093.0,0.77781618]
[1680634715920,0.008,28094.0,28093.0,0.69273736]
[1680634716126,0.008,28094.0,28093.0,1.22004105]
[1680634717243,0.008,28094.0,28093.0,1.38999594]
[1680634717822,0.008,28094.0,28093.0,1.76379594]
[1680634718732,0.008,28094.0,28093.0,1.38999594]
[1680634718976,0.008,28094.0,28093.0,1.22022105]
[1680634719390,0.008,28094.0,28093.0,1.39017594]
[1680634719834,0.008,28094.0,28093.0,1.01287225]
[1680634720044,0.008,28094.0,28093.0,1.4786316]
[1680634720257,0.008,28094.0,28093.0,1.47859451]
[1680634720691,0.008,28094.0,28093.0,1.47859445]
[1680634721917,0.008,28094.0,28093.0,1.47859439]
[1680634722147,0.008,28094.0,28093.0,1.3511458]
[1680634722828,0.008,28094.0,28093.0,1.47852604]
[1680634723052,0.008,28094.0,28093.0,1.64846221]
[1680634723278,0.008,28094.0,28093.0,1.47852604]
[1680634724208,0.77999108,28101.0,28093.0,1.47752604]
[1680634724467,0.002,28094.0,28093.0,1.11477248]
[1680634724689,0.34651281,28100.0,28095.0,0.3738]
[1680634724914,0.3,28099.0,28096.0,0.10912129]
[1680634725133,0.30021,28099.0,28097.0,0.015686]
[1680634725377,0.29208168,28099.0,28098.0,0.0085]
[1680634725597,0.29208168,28099.0,28098.0,0.17926]
[1680634725815,0.29408168,28099.0,28098.0,0.17926]
[1680634726037,0.00021,28100.0,28098.0,0.17926]
[1680634726264,0.0729,28101.0,28098.0,0.53397056]
[1680634726502,0.0729,28101.0,28099.0,0.5983263]
[1680634726722,0.0729,28101.0,28100.0,0.0085]
[1680634726944,0.0729,28101.0,28100.0,0.17926]
[1680634727167,0.07311,28101.0,28100.0,0.17926]
[1680634727395,0.0679,28101.0,28100.0,0.17926]
[1680634727626,0.3799,28101.0,28100.0,0.17926]
[1680634727849,0.3,28101.0,28100.0,0.17926]
[1680634728079,0.312,28101.0,28100.0,0.18126]
[1680634728306,0.3,28101.0,28100.0,0.17926]
[1680634728528,0.72390989,28101.0,28100.0,0.18126]
[1680634728757,0.3845,28101.0,28100.0,0.01062]
[1680634728986,0.51565188,28101.0,28100.0,0.18126]
[1680634729275,0.80866702,28101.0,28100.0,0.0105]
[1680634729470,0.81008002,28101.0,28100.0,0.002]
[1680634729914,0.76630202,28101.0,28100.0,0.002]
[1680634730132,0.76630202,28101.0,28100.0,0.17276]
[1680634730619,0.76630202,28101.0,28100.0,0.18126]
[1680634731058,0.76630202,28101.0,28100.0,0.01068]
[1680634731275,0.69380202,28101.0,28100.0,0.18126]
[1680634731491,0.69380202,28101.0,28100.0,0.18144]
[1680634732813,0.69401202,28101.0,28100.0,0.16626]
[1680634733041,0.69401202,28101.0,28100.0,0.17076]
[1680634735064,0.69401202,28101.0,28100.0,0.17926]
[1680634735943,0.69401202,28101.0,28100.0,0.0085]
[1680634736162,0.69380202,28101.0,28099.0,0.0085]
[1680634736375,0.3,28100.0,28099.0,0.0085]
[1680634736813,0.3,28100.0,28098.0,0.0085]
[1680634737026,0.3,28100.0,28099.0,0.18904]
[1680634737274,0.3,28100.0,28099.0,0.18026]
[1680634737511,0.3,28100.0,28099.0,0.196665]
[1680634737724,0.3,28100.0,28099.0,0.17926]
[1680634738366,0.3,28100.0,28099.0,0.195856]
[1680634738617,0.314,28100.0,28099.0,0.196297]
[1680634738804,0.314,28100.0,28099.0,0.196662]
[1680634739273,0.314,28100.0,28099.0,0.18026]
[1680634739971,0.314,28100.0,28099.0,0.26525029]
[1680634740131,0.314,28100.0,28099.0,0.28114629]
[1680634740362,0.314,28100.0,28099.0,0.26537029]
[1680634740561,0.3891712,28100.0,28099.0,0.26537029]
[1680634740741,0.37816513,28100.0,28099.0,0.18038]
[1680634740942,0.67816513,28100.0,28099.0,0.26525029]
[1680634741146,0.67816513,28100.0,28099.0,0.18038]
[1680634741344,0.67816513,28100.0,28099.0,0.18026]
[1680634741937,0.67816513,28100.0,28099.0,0.26525029]
[1680634742137,0.67816513,28100.0,28099.0,0.26537029]
[1680634742632,0.67837513,28100.0,28099.0,0.25902728]
[1680634742811,0.67837513,28100.0,28099.0,0.26525029]
[1680634745967,0.67837513,28100.0,28099.0,0.39273573]
[1680634747624,0.67837513,28100.0,28099.0,0.30774544]
[1680634748501,0.67837513,28100.0,28099.0,0.32397344]
[1680634748724,0.67837513,28100.0,28099.0,0.30774544]
[1680634749164,0.67837513,28100.0,28099.0,0.47772602]
[1680634749656,0.67837513,28100.0,28099.0,0.49392702]
[1680634749870,0.67837513,28100.0,28099.0,0.49438102]
[1680634750088,0.67837513,28100.0,28099.0,0.47772602]
[1680634750543,0.67837513,28100.0,28099.0,0.49410902]
[1680634750763,0.67837513,28100.0,28099.0,0.32412844]
[1680634750764,0.31421,28100.0,28099.0,0.32412844]
[1680634750984,0.31421,28100.0,28099.0,0.32362544]
[1680634751201,0.31421,28100.0,28099.0,0.47772602]
[1680634751648,0.31421,28100.0,28099.0,0.30774544]
[1680634752117,0.31421,28100.0,28099.0,0.13118309]
[1680634752343,0.31421,28100.0,28099.0,0.29824544]
[1680634753010,0.31421,28100.0,28099.0,0.46822602]
[1680634753225,0.31421,28100.0,28099.0,0.29824544]
[1680634753450,0.31421,28100.0,28099.0,0.38350898]
[1680634753668,0.70984716,28100.0,28099.0,0.38350898]
[1680634753888,0.70984716,28100.0,28099.0,0.29824544]
[1680634754310,0.70984716,28100.0,28099.0,0.30674544]
[1680634756564,0.31421,28100.0,28099.0,0.34924058]
[1680634756760,0.01421,28100.0,28099.0,0.69729463]
[1680634756983,0.014,28100.0,28099.0,0.68123263]
[1680634757106,0.07,28100.0,28099.0,0.68123263]
[1680634757525,0.07,28100.0,28099.0,0.89273711]
[1680634757741,0.07,28100.0,28099.0,0.72275653]
[1680634758187,0.014,28100.0,28099.0,0.54832556]
[1680634758403,0.014,28100.0,28099.0,0.71452256]
[1680634758623,0.014,28100.0,28099.0,1.34212794]
[1680634758853,0.014,28100.0,28099.0,1.82460203]
[1680634759069,0.014,28100.0,28099.0,1.14407812]
[1680634759279,0.014,28100.0,28099.0,1.3998875]
[1680634759496,0.36582356,28105.0,28100.0,0.5238]
[1680634759718,0.36582356,28105.0,28104.0,0.21317061]
[1680634759999,0.00021,28105.0,28104.0,0.67604503]
[1680634760219,0.02299,28109.0,28104.0,0.67604503]
[1680634760220,0.44550646,28107.0,28104.0,0.69270603]
[1680634760456,0.38971646,28107.0,28105.0,0.63431976]
[1680634760674,0.38971646,28107.0,28106.0,0.2559742]
[1680634760896,0.38971646,28107.0,28106.0,0.2644742]
[1680634761117,0.38971646,28107.0,28106.0,0.2811102]
[1680634761118,0.00021,28107.0,28106.0,0.2811102]
[1680634761338,0.056,28108.0,28106.0,0.195836]
[1680634761559,0.001,28107.0,28106.0,0.1792]
[1680634761769,0.001,28107.0,28106.0,0.194963]
[1680634762204,0.001,28107.0,28106.0,0.1792]
[1680634762443,0.43311774,28108.0,28106.0,0.1792]
[1680634762653,0.43311774,28108.0,28107.0,0.0085]
[1680634763741,0.43711774,28108.0,28107.0,0.0085]
[1680634764404,0.43311774,28108.0,28107.0,0.0085]
[1680634764827,0.05621,28108.0,28107.0,0.0085]
[1680634765059,0.056,28108.0,28107.0,0.024586]
[1680634765281,0.05621,28108.0,28107.0,0.0085]
[1680634765496,0.056,28108.0,28107.0,0.0085]
[1680634766378,0.056,28108.0,28107.0,0.0115]
[1680634766840,0.37570783,28108.0,28107.0,0.0115]
[1680634767049,0.37591783,28108.0,28107.0,0.0085]
[1680634767489,0.37991783,28108.0,28107.0,0.0085]
[1680634767742,0.37970783,28108.0,28106.0,0.0085]
[1680634768162,0.37991783,28108.0,28106.0,0.1792]
[1680634768582,0.37591783,28108.0,28106.0,0.1792]
[1680634769017,0.37591783,28108.0,28106.0,0.1822]
[1680634769234,0.3690804,28107.0,28106.0,0.1822]
[1680634769442,0.38442518,28108.0,28106.0,0.1822]
[1680634769656,0.4006,28107.0,28106.0,0.1822]
[1680634769864,0.4006,28107.0,28106.0,0.1792]
[1680634770070,0.4006,28107.0,28106.0,0.1822]
[1680634770288,0.4006,28107.0,28106.0,0.0085]
[1680634770496,0.4006,28107.0,28106.0,0.0115]
[1680634771147,0.40081,28107.0,28105.0,0.1672]
[1680634771348,0.40081,28107.0,28105.0,0.1707]
[1680634771569,0.40081,28107.0,28104.0,0.27983427]
[1680634771570,0.40081,28107.0,28106.0,0.186872]
[1680634771984,0.40081,28107.0,28106.0,0.016172]
[1680634773049,0.40181,28107.0,28106.0,0.016172]
[1680634773239,0.40081,28107.0,28106.0,0.024672]
[1680634773469,0.40081,28107.0,28106.0,0.1812]
[1680634773689,0.40081,28107.0,28106.0,0.1792]
[1680634773912,0.40081,28107.0,28106.0,0.0105]
[1680634774148,0.40081,28107.0,28106.0,0.02514]
[1680634774340,0.40081,28107.0,28106.0,0.02714]
[1680634774568,0.40081,28107.0,28106.0,0.02514]
[1680634775014,0.40081,28107.0,28106.0,0.0105]
[1680634775324,0.40081,28107.0,28106.0,0.027249]
[1680634775430,0.40081,28107.0,28106.0,0.197949]
[1680634775655,0.00021,28107.0,28106.0,0.197949]
[1680634775877,0.0384,28108.0,28106.0,0.197949]
[1680634776100,0.0384,28108.0,28107.0,0.025098]
[1680634776429,0.0384,28108.0,28107.0,0.024939]
[1680634776625,0.0384,28108.0,28107.0,0.0085]
[1680634777278,0.0424,28108.0,28107.0,0.0254]
[1680634777503,0.04261,28108.0,28107.0,0.0254]
[1680634778763,0.03861,28108.0,28107.0,0.0254]
[1680634778998,0.04261,28108.0,28107.0,0.0254]
[1680634779229,0.03861,28108.0,28107.0,0.0254]
[1680634779452,0.04261,28108.0,28107.0,0.0254]
[1680634779677,0.03861,28108.0,28107.0,0.0254]
[1680634779896,0.04261,28108.0,28107.0,0.0254]
[1680634780368,0.43615504,28109.0,28106.0,0.28048779]